bitfinex-derivatives/quotes_BNBF0:USTF0_20241225
["timestamp","ask_amount","ask_price","bid_price","bid_amount"]
[1735093970237,0.26325556,699.24,697.77,0.27629905]
[1735093970442,0.26325556,699.23,697.77,0.27629905]
[1735093970641,0.26325556,699.22,697.77,0.27629905]
[1735093970842,0.26325556,699.21,697.77,0.27629905]
[1735093971041,0.26325556,699.2,697.77,0.27629905]
[1735093971236,0.26325556,699.19,697.77,0.27629905]
[1735093971438,1.07026258,699.28,697.77,0.27629905]
[1735093971439,0.26325556,699.18,697.77,0.27629905]
[1735093971638,1.07026258,699.28,697.77,0.27629905]
[1735093971840,0.26325966,699.27,697.77,0.27629905]
[1735093972440,1.33352224,699.27,697.77,0.27629905]
[1735093972643,0.26325966,699.26,697.77,0.27629905]
[1735093972842,0.26325966,699.25,697.77,0.27629905]
[1735093973044,0.26325966,699.24,697.77,0.27629905]
[1735093973246,0.26325966,699.23,697.77,0.27629905]
[1735093973438,0.26325966,699.22,697.77,0.27629905]
[1735093973642,0.26325966,699.21,697.77,0.27629905]
[1735093973944,1.07026258,699.01,697.77,0.27629905]
[1735093974143,0.26325966,699.0,697.77,0.27629905]
[1735093974644,2.18511944,699.31,697.77,0.27629905]
[1735093974645,0.26327318,698.99,697.77,0.27629905]
[1735093974840,0.26327318,698.98,697.77,0.27629905]
[1735093975039,0.26327318,698.97,697.77,0.27629905]
[1735093975239,0.26327318,698.96,697.77,0.27629905]
[1735093975439,0.26327318,698.95,697.77,0.27629905]
[1735093975745,0.26327318,698.94,697.77,0.27629905]
[1735093976044,0.26327318,698.93,697.77,0.27629905]
[1735093976248,0.26327318,698.92,697.77,0.27629905]
[1735093976446,0.26327318,698.91,697.77,0.27629905]
[1735093976642,0.26327318,698.9,697.77,0.27629905]
[1735093976848,0.26327318,698.89,697.77,0.27629905]
[1735093977148,0.26327318,698.88,697.77,0.27629905]
[1735093977350,1.07026258,699.03,697.77,0.27629905]
[1735093977541,0.26328697,699.02,697.77,0.27629905]
[1735093977941,1.07026258,699.04,697.77,0.27629905]
[1735093978248,0.26328743,699.03,697.77,0.27629905]
[1735093978649,0.26328743,699.02,697.77,0.27629905]
[1735093978951,0.26328743,699.01,697.77,0.27629905]
[1735093979143,0.26328743,699.0,697.77,0.27629905]
[1735093979350,0.26328743,698.99,697.77,0.27629905]
[1735093979542,0.26328743,698.98,697.77,0.27629905]
[1735093979743,0.26328743,698.97,697.77,0.27629905]
[1735093979948,0.26328743,698.96,697.77,0.27629905]
[1735093980148,0.26328743,698.95,697.77,0.27629905]
[1735093980345,0.26328743,698.94,697.77,0.27629905]
[1735093980651,0.26328743,698.93,697.77,0.27629905]
[1735093980846,0.26328743,698.92,697.77,0.27629905]
[1735093981044,0.26329769,698.91,697.77,0.27629905]
[1735093981248,1.07026258,699.17,697.77,0.27629905]
[1735093981446,0.26329779,699.16,697.77,0.27629905]
[1735093982048,0.26329784,699.15,697.77,0.27629905]
[1735093982244,0.26329784,699.14,697.77,0.27629905]
[1735093982450,0.26329784,699.13,697.77,0.27629905]
[1735093982647,0.26329784,699.12,697.77,0.27629905]
[1735093982850,0.26329784,699.11,697.77,0.27629905]
[1735093983045,0.28598801,699.33,697.77,0.27629905]
[1735093983046,0.26329784,699.1,697.77,0.27629905]
[1735093983246,0.26329784,699.09,697.77,0.27629905]
[1735093983451,0.26329784,699.08,697.77,0.27629905]
[1735093983648,0.26329784,699.07,697.77,0.27629905]
[1735093983851,0.26329784,699.06,697.77,0.27629905]
[1735093984051,0.26329784,699.05,697.77,0.27629905]
[1735093984253,1.07026258,699.2,697.77,0.27629905]
[1735093984446,0.26328948,699.19,697.77,0.27629905]
[1735093985147,0.26328948,699.18,697.77,0.27629905]
[1735093985348,0.26328948,699.17,697.77,0.27629905]
[1735093985551,0.26328948,699.16,697.77,0.27629905]
[1735093985747,0.26328948,699.15,697.77,0.27629905]
[1735093985956,0.26328948,699.14,697.77,0.27629905]
[1735093986149,0.28598801,699.33,697.77,0.27629905]
[1735093986150,0.26328948,699.13,697.77,0.27629905]
[1735093986350,0.26328948,699.12,697.77,0.27629905]
[1735093986554,0.26328948,699.11,697.77,0.27629905]
[1735093986754,0.26328948,699.1,697.77,0.27629905]
[1735093987054,0.26328948,699.09,697.77,0.27629905]
[1735093987254,0.26328948,699.08,697.77,0.27629905]
[1735093987451,0.28598801,699.33,697.77,0.27629905]
[1735093987452,0.26333446,699.07,697.77,0.27629905]
[1735093987653,0.26333446,699.06,697.77,0.27629905]
[1735093987855,0.26333446,699.05,697.77,0.27629905]
[1735093988050,0.26333446,699.04,697.77,0.27629905]
[1735093988254,0.26333446,699.03,697.77,0.27629905]
[1735093988557,0.26333446,699.02,697.77,0.27629905]
[1735093988756,0.26333446,699.01,697.77,0.27629905]
[1735093988958,0.26333446,699.0,697.77,0.27629905]
[1735093989154,0.26333446,698.99,697.77,0.27629905]
[1735093989355,0.26333446,698.98,697.77,0.27629905]
[1735093989551,0.26333446,698.97,697.77,0.27629905]
[1735093989852,0.26333446,698.96,697.77,0.27629905]
[1735093990054,0.26333446,698.96,697.71,0.28665204]
[1735093990055,0.26333446,698.95,697.02,1.07060708]
[1735093990254,0.26335281,698.94,697.02,1.07060708]
[1735093990457,0.26335281,698.93,697.02,1.07060708]
[1735093990657,0.26335281,698.92,697.02,1.07060708]
[1735093990858,1.07026258,698.98,697.02,1.07060708]
[1735093990859,0.26335281,698.91,697.02,1.07060708]
[1735093991158,0.26335281,698.91,696.71,1.35269467]
[1735093991159,0.26335281,698.9,696.99,1.07060708]
[1735093991356,0.26335281,698.89,696.99,1.07060708]
[1735093991557,1.07026258,698.99,696.99,1.07060708]
[1735093991558,0.26335281,698.88,696.99,1.07060708]
[1735093991758,0.26335281,698.87,696.99,1.07060708]
[1735093992059,0.26335281,698.86,696.99,1.07060708]
[1735093992358,0.26335281,698.85,696.99,1.07060708]
[1735093992559,0.26335281,698.84,696.96,1.07060708]
[1735093992853,1.07026258,699.0,696.96,1.07060708]
[1735093993057,0.2633497,698.99,696.96,1.07060708]
[1735093993554,0.2633497,698.99,696.97,1.07060708]
[1735093993752,0.2633497,698.98,696.97,1.07060708]
[1735093994054,0.2633497,698.97,696.97,1.07060708]
[1735093994255,0.2633497,698.96,696.97,1.07060708]
[1735093994455,0.2633497,698.95,696.97,1.07060708]
[1735093994757,0.2633497,698.94,696.97,1.07060708]
[1735093994958,0.2633497,698.93,696.97,1.07060708]
[1735093995157,0.2633497,698.92,696.94,1.07060708]
[1735093995459,0.2633497,698.91,696.94,1.07060708]
[1735093995652,0.2633497,698.9,696.94,1.07060708]
[1735093995854,0.26334999,698.89,696.94,1.07060708]
[1735093996050,0.26334999,698.88,696.94,1.07060708]
[1735093996258,0.26334999,698.87,696.95,1.07060708]
[1735093996454,0.26334999,698.86,696.95,1.07060708]
[1735093996652,0.26334999,698.85,696.95,1.07060708]
[1735093996957,0.26334999,698.84,696.95,1.07060708]
[1735093997153,0.26334999,698.83,697.0,1.07060708]
[1735093997456,0.26334999,698.82,697.0,1.07060708]
[1735093997653,0.26334999,698.81,697.02,0.28693581]
[1735093997853,0.54955491,698.8,697.02,0.28693581]
[1735093998052,0.26334999,698.79,697.02,0.28693581]
[1735093998458,0.26338283,698.78,697.02,0.28693581]
[1735093998757,0.26338283,698.77,697.02,0.28693581]
[1735093998959,0.26338283,698.76,697.02,0.28693581]
[1735093999156,0.26338283,698.75,697.02,0.28693581]
[1735093999362,0.26338283,698.74,697.02,0.28693581]
[1735093999660,0.26338283,698.73,697.02,0.28693581]
[1735093999858,0.26338283,698.72,697.02,0.28693581]
[1735094000057,0.26338283,698.71,697.02,0.28693581]
[1735094000256,0.26338283,698.7,697.02,0.28693581]
[1735094000452,0.26338283,698.69,697.02,0.28693581]
[1735094000656,0.26338283,698.68,697.02,0.28693581]
[1735094000858,0.26338283,698.67,697.02,0.28693581]
[1735094001060,0.26338283,698.66,697.02,0.28693581]
[1735094001262,0.26341399,698.65,697.02,0.28693581]
[1735094001460,0.26341399,698.64,697.02,0.28693581]
[1735094001663,0.26341399,698.63,697.02,0.28693581]
[1735094001857,0.26341399,698.62,697.02,0.28693581]
[1735094002063,0.26342431,698.61,697.02,0.28693581]
[1735094002259,0.26342431,698.6,697.02,0.28693581]
[1735094002456,0.26342431,698.59,697.02,0.28693581]
[1735094002762,0.28620492,698.8,697.02,0.28693581]
[1735094002763,0.26342431,698.58,697.02,0.28693581]
[1735094003057,0.26342431,698.57,697.02,0.28693581]
[1735094003265,0.26342431,698.56,697.02,0.28693581]
[1735094003559,0.26342431,698.55,697.02,0.28693581]
[1735094003861,0.26342431,698.54,697.02,0.28693581]
[1735094004061,0.26342968,698.53,697.02,0.28693581]
[1735094004361,0.26342968,698.52,697.02,0.28693581]
[1735094004561,0.26342968,698.51,697.02,0.28693581]
[1735094004762,0.26342968,698.5,697.02,0.28693581]
[1735094004962,0.26342968,698.49,697.02,0.28693581]
[1735094005164,0.26342968,698.48,697.02,0.28693581]
[1735094005356,0.28620492,698.8,697.02,0.28693581]
[1735094005561,0.26343323,698.79,697.02,0.28693581]
[1735094006763,0.26343368,698.78,697.02,0.28693581]
[1735094006958,0.26343368,698.77,697.02,0.28693581]
[1735094007164,0.26343368,698.76,697.02,0.28693581]
[1735094007364,0.26343368,698.75,697.02,0.28693581]
[1735094007564,0.26343368,698.74,697.02,0.28693581]
[1735094007758,0.26343368,698.73,697.02,0.28693581]
[1735094007960,0.26343368,698.72,697.02,0.28693581]
[1735094008165,0.26343368,698.71,697.02,0.28693581]
[1735094008359,0.26343368,698.7,697.02,0.28693581]
[1735094008558,0.26343368,698.69,697.02,0.28693581]
[1735094008759,0.26343368,698.68,697.02,0.28693581]
[1735094008962,0.26343368,698.67,697.02,0.28693581]
[1735094009164,0.26343368,698.66,697.02,0.28693581]
[1735094009363,0.28620492,698.8,697.02,0.28693581]
[1735094009564,0.26343467,698.79,697.02,0.28693581]
[1735094010166,0.28620492,698.8,697.02,0.28693581]
[1735094010365,0.26342437,698.79,697.02,0.28693581]
[1735094018474,0.28620492,698.8,697.02,0.28693581]
[1735094018675,0.26344981,698.79,697.02,0.28693581]
[1735094020677,0.26341576,698.78,697.02,0.28693581]
[1735094020878,0.26341576,698.77,697.02,0.28693581]
[1735094021079,0.26341576,698.76,697.02,0.28693581]
[1735094021280,0.26341576,698.75,697.02,0.28693581]
[1735094021573,0.26341576,698.74,697.02,0.28693581]
[1735094021775,0.26341576,698.73,697.02,0.28693581]
[1735094022078,0.26341576,698.72,697.02,0.28693581]
[1735094022279,0.26341576,698.71,697.02,0.28693581]
[1735094022578,0.26341576,698.7,697.02,0.28693581]
[1735094022779,0.28620492,698.8,697.02,0.28693581]
[1735094022780,0.26341576,698.69,697.02,0.28693581]
[1735094022977,0.26341576,698.68,697.02,0.28693581]
[1735094023179,0.26341576,698.67,697.02,0.28693581]
[1735094023380,0.26341576,698.66,697.02,0.28693581]
[1735094023573,0.26341576,698.65,697.02,0.28693581]
[1735094023777,0.26341576,698.64,697.02,0.28693581]
[1735094023974,0.26341576,698.63,697.02,0.28693581]
[1735094024178,0.26341576,698.62,697.02,0.28693581]
[1735094024380,0.28620492,698.8,697.02,0.28693581]
[1735094024381,0.26341576,698.61,697.02,0.28693581]
[1735094024576,0.26341576,698.6,697.02,0.28693581]
[1735094024778,0.26341576,698.59,697.02,0.28693581]
[1735094024975,0.54971081,698.58,697.02,0.28693581]
[1735094025181,0.26341576,698.57,697.02,0.28693581]
[1735094025977,0.26341005,698.56,697.02,0.28693581]
[1735094026182,0.28629505,698.58,697.02,0.28693581]
[1735094026382,0.26341005,698.57,697.02,0.28693581]
[1735094026876,0.26341005,698.56,697.02,0.28693581]
[1735094027076,0.26341005,698.55,697.02,0.28693581]
[1735094027275,0.28629505,698.58,697.02,0.28693581]
[1735094027478,0.2634151,698.57,697.02,0.28693581]
[1735094028878,0.26342964,698.56,697.02,0.28693581]
[1735094029080,0.26342964,698.55,697.02,0.28693581]
[1735094029278,0.26342964,698.54,697.02,0.28693581]
[1735094029480,0.26342964,698.53,697.02,0.28693581]
[1735094029780,0.26342964,698.52,697.02,0.28693581]
[1735094029982,0.26342964,698.51,697.02,0.28693581]
[1735094030180,0.28629505,698.58,697.02,0.28693581]
[1735094030384,0.26342753,698.57,697.02,0.28693581]
[1735094031586,0.26342753,698.57,697.04,1.07060708]
[1735094033488,0.26342753,698.57,697.08,1.07060708]
[1735094033788,0.28630325,698.56,697.08,1.07060708]
[1735094033988,0.26342753,698.55,697.08,1.07060708]
[1735094034288,1.07026258,698.55,697.08,1.07060708]
[1735094034484,0.26342316,698.54,697.08,1.07060708]
[1735094035085,1.07026258,698.55,697.08,1.07060708]
[1735094035283,1.33368442,698.54,697.09,1.07060708]
[1735094035487,0.26342184,698.53,697.09,1.07060708]
[1735094036390,0.26342184,698.53,697.06,1.07060708]
[1735094036691,0.26342184,698.52,697.06,1.07060708]
[1735094036886,0.26342184,698.51,697.06,1.07060708]
[1735094037086,0.26342184,698.54,697.06,1.07060708]
[1735094037288,0.28630325,698.56,697.02,0.28693581]
[1735094037289,0.26341897,698.53,697.02,1.35754289]
[1735094037487,0.26341897,698.52,697.02,1.35754289]
[1735094037688,0.26341897,698.51,697.02,1.35754289]
[1735094037887,0.26341897,698.5,697.02,1.35754289]
[1735094038091,0.26341897,698.49,697.02,1.35754289]
[1735094038286,0.26341897,698.48,697.02,1.35754289]
[1735094038491,0.26341897,698.47,697.02,1.35754289]
[1735094038693,0.26341897,698.46,697.02,0.28693581]
[1735094038986,0.26341897,698.45,697.02,0.28693581]
[1735094039190,0.26341897,698.44,697.02,0.28693581]
[1735094039395,0.28630325,698.56,697.08,1.07060708]
[1735094039588,0.26342071,698.55,697.08,1.07060708]
[1735094039893,0.26342053,698.54,697.08,1.07060708]
[1735094040094,0.26342053,698.53,697.08,1.07060708]
[1735094040296,0.26342053,698.52,697.08,1.07060708]
[1735094040490,0.26342053,698.51,697.09,1.07060708]
[1735094040693,0.26342053,698.5,697.09,1.07060708]
[1735094040895,0.26342053,698.49,697.09,1.07060708]
[1735094041088,0.28633604,698.48,697.11,1.07060708]
[1735094041295,0.26342053,698.47,697.11,1.07060708]
[1735094041796,0.28633604,698.48,697.11,1.07060708]
[1735094041991,0.26341397,698.47,697.11,1.07060708]
[1735094042296,0.26341397,698.47,697.08,1.07060708]
[1735094042591,0.28633604,698.48,697.08,1.07060708]
[1735094042790,0.26342035,698.47,697.08,1.07060708]
[1735094043096,0.26342035,698.47,697.1,1.07060708]
[1735094043397,0.28634424,698.46,697.1,1.07060708]
[1735094043591,0.26342035,698.45,697.1,1.07060708]
[1735094043895,0.26342035,698.45,697.09,1.07060708]
[1735094044495,0.28634424,698.46,697.09,1.07060708]
[1735094045196,0.28634424,698.46,697.1,1.07060708]
[1735094045897,0.28634424,698.46,697.02,0.28693581]
[1735094046693,0.28634424,698.46,697.04,1.07060708]
[1735094047898,0.28634424,698.46,697.02,0.28693581]
[1735094057501,0.28634424,698.46,697.03,1.07060708]
[1735094058600,0.28634424,698.46,697.02,1.35754289]
[1735094059408,0.28634424,698.46,697.03,0.28693169]
[1735094071415,0.26344466,698.45,697.03,0.28693169]
[1735094072309,0.26344504,698.44,697.03,0.28693169]
[1735094072515,0.26344504,698.43,697.03,0.28693169]
[1735094072815,0.26344504,698.42,697.03,0.28693169]
[1735094073009,0.26344504,698.41,697.03,0.28693169]
[1735094073215,0.28634424,698.46,697.03,0.28693169]
[1735094073410,0.26344529,698.45,697.03,0.28693169]
[1735094074114,0.28635244,698.44,697.03,0.28693169]
[1735094074316,0.26344529,698.43,697.03,0.28693169]
[1735094075117,0.2634434,698.42,697.03,0.28693169]
[1735094075316,0.2634434,698.41,697.03,0.28693169]
[1735094075516,0.2634434,698.4,697.03,0.28693169]
[1735094075817,0.28635244,698.44,697.03,0.28693169]
[1735094076116,0.26344422,698.43,697.03,0.28693169]
[1735094078412,0.28635244,698.44,697.03,0.28693169]
[1735094083515,0.263515,698.43,697.03,0.28693169]
[1735094084024,0.28635244,698.44,697.03,0.28693169]
[1735094084411,0.26351435,698.43,697.03,0.28693169]
[1735094084815,1.07236034,698.4,697.03,0.28693169]
[1735094085017,0.26351435,698.39,697.03,0.28693169]
[1735094086213,0.2635157,698.38,697.03,0.28693169]
[1735094086418,0.2635157,698.37,697.03,0.28693169]
[1735094086613,0.2635157,698.36,697.03,0.28693169]
[1735094086915,0.2635157,698.35,697.03,0.28693169]
[1735094087113,1.35871278,698.44,697.03,0.28693169]
[1735094087317,0.263464,698.43,697.03,0.28693169]
[1735094091613,0.26344778,698.42,697.03,0.28693169]
[1735094091814,0.26344778,698.41,697.03,0.28693169]
[1735094092015,0.26344778,698.4,697.03,0.28693169]
[1735094092222,0.26344778,698.39,697.03,0.28693169]
[1735094092422,0.26343927,698.38,697.03,0.28693169]
[1735094092621,0.26343927,698.37,697.03,0.28693169]
[1735094092822,0.26343927,698.36,697.03,0.28693169]
[1735094093022,0.28635244,698.44,697.03,0.28693169]
[1735094093320,0.26344809,698.43,697.03,0.28693169]
[1735094094520,0.26344226,698.42,697.03,0.28693169]
[1735094094723,0.26344226,698.41,697.03,0.28693169]
[1735094094926,0.26344226,698.4,697.03,0.28693169]
[1735094095225,0.26344226,698.39,697.03,0.28693169]
[1735094095417,0.26344226,698.38,697.03,0.28693169]
[1735094095618,0.26344226,698.37,697.03,0.28693169]
[1735094095824,0.28635244,698.44,697.03,0.28693169]
[1735094096021,0.26344015,698.43,697.03,0.28693169]
[1735094097123,0.26344248,698.42,697.03,0.28693169]
[1735094097327,0.26344248,698.41,697.03,0.28693169]
[1735094097525,0.26344248,698.4,697.03,0.28693169]
[1735094097722,0.26344248,698.39,697.03,0.28693169]
[1735094097921,0.26344248,698.38,697.03,0.28693169]
[1735094098123,0.28635244,698.44,697.03,0.28693169]
[1735094125447,0.28635244,698.44,697.03,1.35753877]
[1735094126247,0.28635244,698.44,697.06,1.07060708]
[1735094126546,0.28635244,698.44,697.08,0.28691111]
[1735094127242,0.28635244,698.44,697.09,1.07060708]
[1735094127845,0.28635244,698.44,697.11,0.28689876]
[1735094130347,1.07026258,699.1,697.11,0.28689876]
[1735094130544,0.28609029,699.08,697.11,0.28689876]
[1735094130743,0.26331852,699.07,697.11,0.28689876]
[1735094130948,0.28610256,699.05,697.11,0.28689876]
[1735094131150,0.26331852,699.04,697.11,0.28689876]
[1735094131454,0.28611484,699.02,697.11,0.28689876]
[1735094131650,0.26331852,699.01,697.11,0.28689876]
[1735094131948,0.28612712,698.99,697.11,0.28689876]
[1735094132150,0.26331534,698.98,697.11,0.28689876]
[1735094132345,0.28613531,698.97,697.11,0.28689876]
[1735094132543,0.26331534,698.96,697.11,0.28689876]
[1735094132747,0.2861435,698.95,697.11,0.28689876]
[1735094132948,0.26331534,698.94,697.11,0.28689876]
[1735094133151,0.28615168,698.93,697.11,0.28689876]
[1735094133351,0.26331534,698.92,697.11,0.28689876]
[1735094134045,0.28615987,698.91,697.11,0.28689876]
[1735094134250,0.26331534,698.9,697.11,0.28689876]
[1735094134450,0.28616806,698.89,697.11,0.28689876]
[1735094134750,0.26331534,698.88,697.11,0.28689876]
[1735094134950,0.26332215,698.87,697.11,0.28689876]
[1735094135151,0.26332215,698.86,697.11,0.28689876]
[1735094135354,0.26332215,698.85,697.11,0.28689876]
[1735094135550,0.28616806,698.89,697.11,0.28689876]
[1735094135551,0.26332215,698.84,697.11,0.28689876]
[1735094135747,0.26332215,698.83,697.11,0.28689876]
[1735094136052,0.26332215,698.82,697.11,0.28689876]
[1735094136352,0.26332215,698.81,697.11,0.28689876]
[1735094136554,0.26332215,698.8,697.11,0.28689876]
[1735094136752,0.26332215,698.79,697.11,0.28689876]
[1735094137052,0.26332215,698.78,697.11,0.28689876]
[1735094137253,0.26332215,698.77,697.11,0.28689876]
[1735094137454,0.26332215,698.76,697.11,0.28689876]
[1735094137652,0.28616806,698.89,697.11,0.28689876]
[1735094137653,0.26332092,698.75,697.11,0.28689876]
[1735094137954,0.26332415,698.74,697.11,0.28689876]
[1735094138157,0.26332415,698.73,697.11,0.28689876]
[1735094138348,0.28616806,698.89,697.11,0.28689876]
[1735094138553,0.26332461,698.88,697.11,0.28689876]
[1735094139455,0.28617625,698.87,697.11,0.28689876]
[1735094139656,0.26332461,698.86,697.11,0.28689876]
[1735094143262,0.26334144,698.85,697.11,0.28689876]
[1735094143461,0.28617625,698.87,697.11,0.28689876]
[1735094143462,0.54952998,698.84,697.11,0.28689876]
[1735094143662,0.26334144,698.83,697.13,1.07060708]
[1735094144062,0.28619673,698.82,697.14,0.28688642]
[1735094144261,0.26334144,698.81,697.14,0.28688642]
[1735094144461,0.28620492,698.8,697.15,1.07060708]
[1735094144763,0.26334144,698.79,697.16,0.28687819]
[1735094145461,0.28621311,698.78,697.16,0.28687819]
[1735094145664,0.26334144,698.77,697.16,0.28687819]
[1735094146064,0.26335212,698.76,697.16,0.28687819]
[1735094146265,0.26335212,698.75,697.16,1.35748527]
[1735094146466,0.26335212,698.74,697.16,1.35748527]
[1735094146665,0.26335212,698.73,697.16,1.35748527]
[1735094146966,0.26335212,698.72,697.16,1.35748527]
[1735094147167,0.26335212,698.71,697.16,1.35748527]
[1735094147364,0.28621311,698.78,697.16,1.35748527]
[1735094147365,0.26335212,698.7,697.16,1.35748527]
[1735094147566,0.26335212,698.69,697.16,1.35748527]
[1735094147763,0.26335212,698.68,697.16,1.35748527]
[1735094147968,0.26335212,698.67,697.16,1.35748527]
[1735094148168,0.26335212,698.66,697.16,1.35748527]
[1735094148365,0.26335212,698.65,697.16,1.35748527]
[1735094148569,0.26335212,698.64,697.17,1.07060708]
[1735094148769,0.28621311,698.78,697.17,1.07060708]
[1735094148770,0.26334571,698.63,697.17,1.07060708]
[1735094148970,0.26334571,698.62,697.17,1.07060708]
[1735094149171,0.28621311,698.78,697.17,1.07060708]
[1735094149367,0.26334894,698.77,697.17,1.07060708]
[1735094149569,0.26335155,698.76,697.17,1.07060708]
[1735094149770,0.26335155,698.75,697.17,1.07060708]
[1735094149966,0.26335155,698.74,697.17,1.07060708]
[1735094150170,0.26335155,698.73,697.17,1.07060708]
[1735094150372,0.26335155,698.72,697.17,1.07060708]
[1735094150569,0.26335155,698.71,697.16,0.28687819]
[1735094150773,0.26335155,698.7,697.18,0.28686996]
[1735094150968,0.26335155,698.69,697.18,0.28686996]
[1735094151168,0.26335155,698.68,697.18,0.28686996]
[1735094151374,0.28621311,698.78,697.18,0.28686996]
[1735094151569,0.26334252,698.77,697.18,0.28686996]
[1735094151768,0.2862213,698.76,697.18,0.28686996]
[1735094151973,0.26334252,698.75,697.18,0.28686996]
[1735094152167,0.54956792,698.75,697.18,0.28686996]
[1735094152374,0.26334252,698.74,697.18,0.28686996]
[1735094153376,0.28623359,698.73,697.18,0.28686996]
[1735094153577,0.26334252,698.72,697.18,0.28686996]
[1735094153770,0.28624178,698.71,697.18,0.28686996]
[1735094153972,0.26334252,698.7,697.18,0.28686996]
[1735094154277,0.26336595,698.69,697.18,0.28686996]
[1735094154476,0.28624178,698.71,697.18,0.28686996]
[1735094154477,0.26336595,698.68,697.18,0.28686996]
[1735094154677,0.26336595,698.67,697.18,0.28686996]
[1735094154873,0.26336595,698.66,697.18,0.28686996]
[1735094155076,0.26336595,698.65,697.18,0.28686996]
[1735094155269,0.26336595,698.64,697.18,0.28686996]
[1735094155473,0.28624178,698.71,697.18,0.28686996]
[1735094155671,0.26338788,698.7,697.18,0.28686996]
[1735094157071,0.2633915,698.69,697.18,0.28686996]
[1735094157273,0.2633915,698.68,697.18,0.28686996]
[1735094157472,0.2633915,698.67,697.18,0.28686996]
[1735094157672,0.28624178,698.71,697.18,0.28686996]
[1735094157673,0.2633915,698.66,697.18,0.28686996]
[1735094157978,0.28624178,698.71,697.18,0.28686996]
[1735094157979,0.26339679,698.65,697.18,0.28686996]
[1735094158175,0.26339679,698.64,697.18,0.28686996]
[1735094158373,0.26339679,698.63,697.18,0.28686996]
[1735094158572,0.28624178,698.71,697.18,0.28686996]
[1735094158573,0.26339679,698.62,697.18,0.28686996]
[1735094158777,0.28624178,698.71,697.18,0.28686996]
[1735094159078,0.26340107,698.7,697.18,0.28686996]
[1735094159876,0.28624178,698.71,697.18,0.28686996]
[1735094159877,0.26338812,698.69,697.18,0.28686996]
[1735094160077,0.26338812,698.68,697.18,0.28686996]
[1735094160278,0.26338812,698.67,697.18,0.28686996]
[1735094160476,0.28624178,698.71,697.18,0.28686996]
[1735094160682,0.26337949,698.7,697.18,0.28686996]
[1735094161081,0.28624998,698.69,697.18,0.28686996]
[1735094161275,0.26337949,698.68,697.18,0.28686996]
[1735094161479,0.26338229,698.67,697.18,0.28686996]
[1735094161680,0.28625817,698.67,697.18,0.28686996]
[1735094162983,0.26337413,698.66,697.18,0.28686996]
[1735094163177,0.28626637,698.65,697.18,0.28686996]
[1735094164176,0.26336753,698.64,697.18,0.28686996]
[1735094165180,0.26336753,698.64,697.19,1.07060708]
[1735094165783,0.26336753,698.64,697.2,0.28686173]
[1735094165985,0.26336753,698.64,697.22,1.07060708]
[1735094166185,0.26336753,698.64,697.23,0.28684938]
[1735094166780,0.28626637,698.65,697.23,1.35745646]
[1735094167681,0.28626637,698.65,697.23,0.28684938]
[1735094182803,0.28626637,698.65,697.25,1.07060708]
[1735094183900,0.28626637,698.65,697.23,0.28684938]
[1735094185603,0.28626637,698.65,697.29,1.07060708]
[1735094186402,1.07026258,699.68,697.29,1.07060708]
[1735094186602,8.5401396,706.9,697.23,1.35745646]
[1735094186603,0.28585312,699.66,697.23,1.35745646]
[1735094186806,0.26315525,699.65,697.23,1.35745646]
[1735094187599,0.26315525,699.65,697.23,0.28684938]
[1735094188104,0.26315525,699.64,697.23,0.28684938]
[1735094188306,0.26315525,699.63,697.23,0.28684938]
[1735094188498,0.26315525,699.62,697.23,0.28684938]
[1735094188697,0.26315525,699.61,697.23,0.28684938]
[1735094188900,0.26315525,699.6,697.23,0.28684938]
[1735094189104,0.26315525,699.59,697.23,0.28684938]
[1735094189304,0.2858899,699.57,697.23,0.28684938]
[1735094189505,0.26316547,699.56,697.23,0.28684938]
[1735094189706,0.28590216,699.54,697.23,0.28684938]
[1735094189905,0.26316547,699.53,697.23,0.28684938]
[1735094192106,0.28590216,699.54,697.23,0.28684938]
[1735094192410,0.26312739,699.53,697.23,0.28684938]
[1735094194907,0.26310949,699.52,697.23,0.28684938]
[1735094195109,0.28590216,699.54,697.23,0.28684938]
[1735094195110,0.26310949,699.51,697.23,0.28684938]
[1735094195309,0.26310949,699.5,697.23,0.28684938]
[1735094195510,0.26310949,699.49,697.23,0.28684938]
[1735094195804,0.26310949,699.48,697.23,0.28684938]
[1735094196013,0.26310949,699.47,697.23,0.28684938]
[1735094196311,0.26310949,699.46,697.23,0.28684938]
[1735094196511,0.26310949,699.45,697.23,0.28684938]
[1735094196706,0.28590216,699.54,697.23,0.28684938]
[1735094196707,0.26310949,699.44,697.23,0.28684938]
[1735094196913,0.26310949,699.43,697.23,0.28684938]
[1735094197107,0.26310949,699.42,697.23,0.28684938]
[1735094197413,0.26310949,699.41,697.23,0.28684938]
[1735094197611,0.26310618,699.4,697.23,0.28684938]
[1735094197815,0.26310618,699.39,697.23,0.28684938]
[1735094198014,0.26310618,699.38,697.23,0.28684938]
[1735094198215,0.28590216,699.54,697.23,0.28684938]
[1735094198415,0.2630708,699.53,697.23,0.28684938]
[1735094200316,0.28590216,699.54,697.23,0.28684938]
[1735094200615,0.26305932,699.53,697.23,0.28684938]
[1735094203014,0.28590216,699.54,697.23,0.28684938]
[1735094203215,0.2630692,699.53,697.23,0.28684938]
[1735094204817,0.28590216,699.54,697.23,0.28684938]
[1735094205020,0.26306882,699.53,697.23,0.28684938]
[1735094205219,0.28590216,699.54,697.23,0.28684938]